[Event "*** Titled Tuesday Blitz"]
[Site "Chess.com"]
[Date "2020.04.28"]
[Round "3"]
[White "KrakenBeast"]
[Black "secretsuperstar7"]
[Result "1-0"]
[WhiteElo "2413"]
[BlackElo "2186"]
[TimeControl "180+1"]
[EndTime "10:28:28 PDT"]
[Termination "KrakenBeast won on time"]

1. d4 {[%clk 0:03:00.9]} 1... Nf6 {[%clk 0:02:57.3]} 2. c4 {[%clk 0:03:00.1]}
2... e6 {[%clk 0:02:55.9]} 3. Nf3 {[%clk 0:03:00.2]} 3... d5 {[%clk 0:02:53.7]}
4. g3 {[%clk 0:02:59]} 4... dxc4 {[%clk 0:02:52.3]} 5. Bg2 {[%clk 0:02:54.1]}
5... a6 {[%clk 0:02:51.5]} 6. O-O {[%clk 0:02:48.5]} 6... Nc6 {[%clk 0:02:48]}
7. e3 {[%clk 0:02:45.9]} 7... Rb8 {[%clk 0:02:44.8]} 8. Nfd2 {[%clk 0:02:45.2]}
8... e5 {[%clk 0:02:22.8]} 9. Bxc6+ {[%clk 0:02:30.6]} 9... bxc6 {[%clk
0:02:20.9]} 10. dxe5 {[%clk 0:02:31.5]} 10... Ng4 {[%clk 0:01:56.8]} 11. Nxc4
{[%clk 0:02:31.3]} 11... Be6 {[%clk 0:01:56.8]} 12. Na5 {[%clk 0:02:08.4]} 12...
Nxe5 {[%clk 0:01:49.7]} 13. f4 {[%clk 0:02:00.3]} 13... Nd3 {[%clk 0:01:11.1]}
14. Nxc6 {[%clk 0:01:48.6]} 14... Qc8 {[%clk 0:00:45.8]} 15. Qxd3 {[%clk
0:01:43.6]} 15... Rb6 {[%clk 0:00:43.2]} 16. Nd4 {[%clk 0:01:42.2]} 16... Bh3
{[%clk 0:00:39.8]} 17. Nc3 {[%clk 0:01:27.4]} 17... c5 {[%clk 0:00:31]} 18. Nf3
{[%clk 0:01:20.1]} 18... Bxf1 {[%clk 0:00:29.6]} 19. Kxf1 {[%clk 0:01:19.2]}
19... Be7 {[%clk 0:00:27.1]} 20. Nd5 {[%clk 0:01:10.7]} 20... Rd6 {[%clk
0:00:18.9]} 21. e4 {[%clk 0:01:11]} 21... Qd8 {[%clk 0:00:13.3]} 22. Be3 {[%clk
0:01:10.4]} 22... O-O {[%clk 0:00:10.5]} 23. Bxc5 {[%clk 0:01:09.4]} 23... Rxd5
{[%clk 0:00:09.4]} 24. Qxd5 {[%clk 0:01:07.8]} 24... Qxd5 {[%clk 0:00:08.6]} 25.
exd5 {[%clk 0:01:08.7]} 25... Bxc5 {[%clk 0:00:08.7]} 26. Rc1 {[%clk 0:01:09.6]}
26... Bb4 {[%clk 0:00:06.1]} 27. a3 {[%clk 0:01:09.3]} 27... Be7 {[%clk
0:00:04.9]} 28. Rc7 {[%clk 0:01:09.1]} 28... Bf6 {[%clk 0:00:04.4]} 29. Ne5
{[%clk 0:01:07.4]} 29... Rd8 {[%clk 0:00:03.7]} 30. Rc5 {[%clk 0:00:56.7]} 30...
h6 {[%clk 0:00:02.3]} 31. Ke2 {[%clk 0:00:56.1]} 31... Be7 {[%clk 0:00:02.1]}
32. Nc6 {[%clk 0:00:54.5]} 1-0

[Event "*** Titled Tuesday Blitz"]
[Site "Chess.com"]
[Date "2020.04.28"]
[Round "3"]
[White "Bulldog167"]
[Black "Sven_Tica"]
[Result "1-0"]
[WhiteElo "2813"]
[BlackElo "2611"]
[TimeControl "180+1"]
[EndTime "10:28:30 PDT"]
[Termination "Bulldog167 won on time"]

1. d4 {[%clk 0:02:59.1]} 1... d5 {[%clk 0:02:58.5]} 2. c4 {[%clk 0:02:58.4]}
2... e6 {[%clk 0:02:59.1]} 3. Nc3 {[%clk 0:02:58.2]} 3... Nf6 {[%clk 0:02:59.4]}
4. Nf3 {[%clk 0:02:55.1]} 4... Nbd7 {[%clk 0:02:56.9]} 5. cxd5 {[%clk
0:02:52.5]} 5... exd5 {[%clk 0:02:56.8]} 6. Bg5 {[%clk 0:02:52.6]} 6... c6
{[%clk 0:02:56.3]} 7. Qc2 {[%clk 0:02:52]} 7... Bd6 {[%clk 0:02:54.4]} 8. e3
{[%clk 0:02:47.3]} 8... Nf8 {[%clk 0:02:54.4]} 9. Ne5 {[%clk 0:02:45.9]} 9...
Ng6 {[%clk 0:02:42.1]} 10. f4 {[%clk 0:02:41.8]} 10... Bxe5 {[%clk 0:01:59.9]}
11. fxe5 {[%clk 0:02:12.5]} 11... h6 {[%clk 0:01:59.5]} 12. exf6 {[%clk
0:02:09.5]} 12... hxg5 {[%clk 0:01:59.7]} 13. fxg7 {[%clk 0:02:09.7]} 13... Rg8
{[%clk 0:02:00]} 14. Bd3 {[%clk 0:02:09.7]} 14... Rxg7 {[%clk 0:01:57.4]} 15.
O-O {[%clk 0:02:09.6]} 15... Be6 {[%clk 0:01:52]} 16. e4 {[%clk 0:02:07.8]}
16... dxe4 {[%clk 0:01:50.4]} 17. Bxe4 {[%clk 0:02:01.4]} 17... Qxd4+ {[%clk
0:01:50.5]} 18. Kh1 {[%clk 0:02:01.7]} 18... O-O-O {[%clk 0:01:45.1]} 19. Rad1
{[%clk 0:01:31.2]} 19... Qb6 {[%clk 0:01:35.5]} 20. Na4 {[%clk 0:01:29.3]} 20...
Qc7 {[%clk 0:01:25.9]} 21. Rxd8+ {[%clk 0:01:29]} 21... Qxd8 {[%clk 0:01:24.6]}
22. Nc5 {[%clk 0:01:28.8]} 22... Bd5 {[%clk 0:01:11]} 23. Bxd5 {[%clk
0:01:10.2]} 23... Qxd5 {[%clk 0:01:09.5]} 24. Rd1 {[%clk 0:01:10.6]} 24... Qe5
{[%clk 0:01:02.5]} 25. Qd3 {[%clk 0:00:36.3]} 1-0

[Event "*** Titled Tuesday Blitz"]
[Site "Chess.com"]
[Date "2020.04.28"]
[Round "3"]
[White "Generalas"]
[Black "robertofabregas"]
[Result "1-0"]
[WhiteElo "2344"]
[BlackElo "2121"]
[TimeControl "180+1"]
[EndTime "10:28:30 PDT"]
[Termination "Generalas won by resignation"]

1. e4 {[%clk 0:02:27.5]} 1... c5 {[%clk 0:02:58.8]} 2. c3 {[%clk 0:02:27.1]}
2... d6 {[%clk 0:02:59.1]} 3. d4 {[%clk 0:02:26.7]} 3... cxd4 {[%clk 0:02:58.2]}
4. cxd4 {[%clk 0:02:26.3]} 4... Nf6 {[%clk 0:02:58.5]} 5. Nc3 {[%clk 0:02:26.6]}
5... a6 {[%clk 0:02:57.3]} 6. a4 {[%clk 0:02:24.3]} 6... Nc6 {[%clk 0:02:55.5]}
7. Be2 {[%clk 0:02:09.3]} 7... g6 {[%clk 0:02:45.2]} 8. Nf3 {[%clk 0:02:07.5]}
8... Bg7 {[%clk 0:02:45.3]} 9. O-O {[%clk 0:02:06.5]} 9... O-O {[%clk
0:02:45.8]} 10. h3 {[%clk 0:02:05.8]} 10... Qb6 {[%clk 0:02:45.6]} 11. d5 {[%clk
0:01:20.4]} 11... Ne5 {[%clk 0:02:33.9]} 12. Nxe5 {[%clk 0:01:19.1]} 12... dxe5
{[%clk 0:02:34.8]} 13. a5 {[%clk 0:01:16.7]} 13... Qd4 {[%clk 0:02:27.7]} 14.
Be3 {[%clk 0:01:14.8]} 14... Qxd1 {[%clk 0:02:22.6]} 15. Rfxd1 {[%clk
0:01:15.7]} 15... Bd7 {[%clk 0:02:17.1]} 16. Na4 {[%clk 0:01:13.8]} 16... Bxa4
{[%clk 0:02:14.6]} 17. Rxa4 {[%clk 0:01:13]} 17... Rac8 {[%clk 0:02:14.7]} 18.
Rb4 {[%clk 0:01:11]} 18... Rc7 {[%clk 0:02:09]} 19. f3 {[%clk 0:01:10]} 19...
Nd7 {[%clk 0:01:54.2]} 20. Rc1 {[%clk 0:00:58.8]} 20... Rfc8 {[%clk 0:01:54.2]}
21. Rxc7 {[%clk 0:00:52.7]} 21... Rxc7 {[%clk 0:01:55.1]} 22. Kf2 {[%clk
0:00:53.1]} 22... Bf8 {[%clk 0:01:52.4]} 23. Rc4 {[%clk 0:00:46.3]} 23... Rxc4
{[%clk 0:01:37.6]} 24. Bxc4 {[%clk 0:00:47.2]} 24... f5 {[%clk 0:01:13.1]} 25.
Ke2 {[%clk 0:00:42.8]} 25... f4 {[%clk 0:01:09.5]} 26. Bf2 {[%clk 0:00:39.6]}
26... Kf7 {[%clk 0:01:04.9]} 27. Kd3 {[%clk 0:00:39.1]} 27... Ke8 {[%clk
0:00:58.1]} 28. b4 {[%clk 0:00:38]} 28... Kd8 {[%clk 0:00:58]} 29. b5 {[%clk
0:00:36.3]} 29... axb5 {[%clk 0:00:54.6]} 30. Bxb5 {[%clk 0:00:37.2]} 30... Kc7
{[%clk 0:00:51.9]} 31. Kc4 {[%clk 0:00:36.7]} 31... Nb8 {[%clk 0:00:47.3]} 32.
Bb6+ {[%clk 0:00:34.2]} 32... Kc8 {[%clk 0:00:46.9]} 33. Bc5 {[%clk 0:00:32]}
33... Nd7 {[%clk 0:00:45.7]} 34. Bb4 {[%clk 0:00:31.6]} 34... Nb8 {[%clk
0:00:44.2]} 35. Bc3 {[%clk 0:00:31]} 35... Kc7 {[%clk 0:00:42.6]} 36. Bxe5+
{[%clk 0:00:30.3]} 36... Kc8 {[%clk 0:00:42.7]} 37. Bxf4 {[%clk 0:00:30.5]} 1-0

[Event "*** Titled Tuesday Blitz"]
[Site "Chess.com"]
[Date "2020.04.28"]
[Round "3"]
[White "x-3738459472"]
[Black "chito89"]
[Result "0-1"]
[WhiteElo "2519"]
[BlackElo "2747"]
[TimeControl "180+1"]
[EndTime "10:28:32 PDT"]
[Termination "chito89 won by resignation"]

1. d4 {[%clk 0:03:00.9]} 1... Nf6 {[%clk 0:02:58.9]} 2. Bf4 {[%clk 0:03:00.6]}
2... e6 {[%clk 0:02:58.6]} 3. e3 {[%clk 0:03:00.4]} 3... d5 {[%clk 0:02:58.7]}
4. Bd3 {[%clk 0:03:00.7]} 4... Bd6 {[%clk 0:02:59.1]} 5. Bg3 {[%clk 0:03:01.1]}
5... c5 {[%clk 0:02:58.2]} 6. c3 {[%clk 0:03:00.3]} 6... O-O {[%clk 0:02:58.6]}
7. Nf3 {[%clk 0:02:57.8]} 7... Qc7 {[%clk 0:02:58.2]} 8. Nbd2 {[%clk 0:02:55.9]}
8... Nbd7 {[%clk 0:02:58.2]} 9. Qe2 {[%clk 0:02:55.8]} 9... Bxg3 {[%clk
0:02:56.4]} 10. hxg3 {[%clk 0:02:54.2]} 10... e5 {[%clk 0:02:57.1]} 11. dxe5
{[%clk 0:02:46.8]} 11... Nxe5 {[%clk 0:02:57]} 12. Nxe5 {[%clk 0:02:47.2]} 12...
Qxe5 {[%clk 0:02:57.3]} 13. Nf3 {[%clk 0:02:47.8]} 13... Qe7 {[%clk 0:02:54.2]}
14. O-O-O {[%clk 0:02:47.1]} 14... h6 {[%clk 0:02:53]} 15. Kb1 {[%clk
0:02:45.6]} 15... b5 {[%clk 0:02:41.6]} 16. Bxb5 {[%clk 0:02:35.9]} 16... Rb8
{[%clk 0:02:41.5]} 17. Bd3 {[%clk 0:02:35.8]} 17... Bg4 {[%clk 0:02:37.8]} 18.
Ka1 {[%clk 0:02:34.4]} 18... Rb6 {[%clk 0:02:34]} 19. Rb1 {[%clk 0:02:19.4]}
19... Rfb8 {[%clk 0:02:32.7]} 20. Qc2 {[%clk 0:02:19.5]} 20... Ne4 {[%clk
0:02:14.7]} 21. c4 {[%clk 0:02:16]} 21... Nf6 {[%clk 0:01:54.7]} 22. Rhc1 {[%clk
0:02:08.8]} 22... Be6 {[%clk 0:01:45.4]} 23. Nd2 {[%clk 0:02:05.9]} 23... Qb7
{[%clk 0:01:32.2]} 24. b3 {[%clk 0:02:03.8]} 24... Qc7 {[%clk 0:01:16.4]} 25.
cxd5 {[%clk 0:02:03]} 25... Nxd5 {[%clk 0:01:16.2]} 26. Qxc5 {[%clk 0:02:02.7]}
26... Qd8 {[%clk 0:00:53.5]} 27. Qd4 {[%clk 0:02:00.2]} 27... Nb4 {[%clk
0:00:50.9]} 28. Nf3 {[%clk 0:01:16.7]} 28... Rd6 {[%clk 0:00:31.7]} 29. Qxa7
{[%clk 0:01:12.4]} 29... Nxd3 {[%clk 0:00:31.5]} 30. Rc2 {[%clk 0:01:09.2]}
30... Ra8 {[%clk 0:00:29.4]} 31. Qc7 {[%clk 0:01:09.4]} 31... Qf6+ {[%clk
0:00:27.6]} 32. Nd4 {[%clk 0:01:09.1]} 32... Nb4 {[%clk 0:00:24.6]} 33. Rcb2
{[%clk 0:01:04.2]} 33... Rda6 {[%clk 0:00:18.7]} 34. Rc1 {[%clk 0:00:57.2]}
34... Nxa2 {[%clk 0:00:16]} 35. Rxa2 {[%clk 0:00:58.1]} 35... Rxa2+ {[%clk
0:00:15.8]} 0-1

[Event "*** Titled Tuesday Blitz"]
[Site "Chess.com"]
[Date "2020.04.28"]
[Round "3"]
[White "Borsuk_Konstantin"]
[Black "Ekka83"]
[Result "1-0"]
[WhiteElo "2570"]
[BlackElo "2354"]
[TimeControl "180+1"]
[EndTime "10:28:33 PDT"]
[Termination "Borsuk_Konstantin won by resignation"]

1. d4 {[%clk 0:03:00.9]} 1... Nf6 {[%clk 0:02:59.7]} 2. c4 {[%clk 0:03:00.6]}
2... g6 {[%clk 0:02:59.3]} 3. Nc3 {[%clk 0:02:59.5]} 3... Bg7 {[%clk 0:02:59.5]}
4. e4 {[%clk 0:02:58.9]} 4... O-O {[%clk 0:03:00.1]} 5. h3 {[%clk 0:02:58.7]}
5... d6 {[%clk 0:03:00.1]} 6. Be3 {[%clk 0:02:58.3]} 6... e5 {[%clk 0:03:00]} 7.
d5 {[%clk 0:02:58.2]} 7... a5 {[%clk 0:02:59.1]} 8. g4 {[%clk 0:02:55.3]} 8...
Na6 {[%clk 0:02:59]} 9. Bd3 {[%clk 0:02:54.3]} 9... Nc5 {[%clk 0:02:50.1]} 10.
Bc2 {[%clk 0:02:54.3]} 10... Nfd7 {[%clk 0:02:18.1]} 11. Nf3 {[%clk 0:02:52]}
11... Nb6 {[%clk 0:02:14.5]} 12. Qe2 {[%clk 0:02:49.2]} 12... f5 {[%clk
0:02:13.8]} 13. gxf5 {[%clk 0:02:43.7]} 13... gxf5 {[%clk 0:02:13.3]} 14. exf5
{[%clk 0:02:29.5]} 14... Bxf5 {[%clk 0:02:13.1]} 15. Bxf5 {[%clk 0:02:20.7]}
15... Rxf5 {[%clk 0:02:13.1]} 16. Nd2 {[%clk 0:02:01.2]} 16... Qh4 {[%clk
0:02:05.8]} 17. Bxc5 {[%clk 0:01:59.3]} 17... dxc5 {[%clk 0:02:04.2]} 18. Nde4
{[%clk 0:01:59.1]} 18... Raf8 {[%clk 0:02:01]} 19. O-O-O {[%clk 0:01:57.1]}
19... Kh8 {[%clk 0:01:50.7]} 20. Rdg1 {[%clk 0:01:54.1]} 20... Bh6+ {[%clk
0:01:26.6]} 21. Kb1 {[%clk 0:01:53.3]} 21... Qf4 {[%clk 0:01:24]} 22. Rg3 {[%clk
0:01:43.4]} 22... Nc8 {[%clk 0:01:07.9]} 23. Nxc5 {[%clk 0:01:37.6]} 23... Qxf2
{[%clk 0:00:54.3]} 24. Qxf2 {[%clk 0:01:30.3]} 24... Rxf2 {[%clk 0:00:55.2]} 25.
N5e4 {[%clk 0:01:30.1]} 25... R2f3 {[%clk 0:00:51.4]} 26. Rxf3 {[%clk
0:01:26.5]} 26... Rxf3 {[%clk 0:00:52.3]} 27. c5 {[%clk 0:01:26.7]} 27... Bf8
{[%clk 0:00:40.8]} 28. Ng5 {[%clk 0:01:19.5]} 28... Rf6 {[%clk 0:00:30]} 29. Ne6
{[%clk 0:01:12.2]} 29... Be7 {[%clk 0:00:29.9]} 30. Ne4 {[%clk 0:01:06]} 30...
Rg6 {[%clk 0:00:29.8]} 31. Nxc7 {[%clk 0:01:04.6]} 31... b6 {[%clk 0:00:23.1]}
32. c6 {[%clk 0:00:54.3]} 32... Nd6 {[%clk 0:00:16]} 33. Nxd6 {[%clk 0:00:49.9]}
33... Bxd6 {[%clk 0:00:16.9]} 34. Ne8 {[%clk 0:00:49.7]} 34... Bb8 {[%clk
0:00:15]} 1-0

[Event "*** Titled Tuesday Blitz"]
[Site "Chess.com"]
[Date "2020.04.28"]
[Round "3"]
[White "AminMolaei"]
[Black "Funkmaus"]
[Result "1-0"]
[WhiteElo "2502"]
[BlackElo "2202"]
[TimeControl "180+1"]
[EndTime "10:28:34 PDT"]
[Termination "AminMolaei won by resignation"]

1. d4 {[%clk 0:03:00.9]} 1... d5 {[%clk 0:02:57.1]} 2. c4 {[%clk 0:03:00.9]}
2... c6 {[%clk 0:02:57.7]} 3. cxd5 {[%clk 0:03:00.2]} 3... cxd5 {[%clk
0:02:58.6]} 4. Bf4 {[%clk 0:03:00.7]} 4... Nf6 {[%clk 0:02:59.4]} 5. e3 {[%clk
0:03:00.9]} 5... Nc6 {[%clk 0:02:59.9]} 6. Nc3 {[%clk 0:03:01.3]} 6... Bf5
{[%clk 0:02:58.2]} 7. Qb3 {[%clk 0:03:00.7]} 7... Na5 {[%clk 0:02:57.7]} 8. Qa4+
{[%clk 0:03:00.8]} 8... Bd7 {[%clk 0:02:57.3]} 9. Bb5 {[%clk 0:03:01.7]} 9... e6
{[%clk 0:02:51.6]} 10. Bxd7+ {[%clk 0:02:53.4]} 10... Nxd7 {[%clk 0:02:52.4]}
11. Nb5 {[%clk 0:02:53.9]} 11... Rc8 {[%clk 0:02:37.1]} 12. b3 {[%clk
0:02:12.3]} 12... a6 {[%clk 0:02:32.1]} 13. Nd6+ {[%clk 0:02:10.5]} 13... Bxd6
{[%clk 0:02:30.4]} 14. Bxd6 {[%clk 0:02:11.4]} 14... Qb6 {[%clk 0:02:04]} 15.
Ba3 {[%clk 0:01:51.1]} 15... Qb5 {[%clk 0:01:38.3]} 16. Qxb5 {[%clk 0:01:45.9]}
16... axb5 {[%clk 0:01:39.1]} 17. Ne2 {[%clk 0:01:45.5]} 17... f6 {[%clk
0:01:34.7]} 18. Kd2 {[%clk 0:01:44.8]} 18... Kf7 {[%clk 0:01:32.7]} 19. Nc3
{[%clk 0:01:42.3]} 19... Ra8 {[%clk 0:01:19.1]} 20. Nxb5 {[%clk 0:01:41.6]}
20... Nb6 {[%clk 0:01:08.1]} 21. Rhc1 {[%clk 0:01:37.4]} 21... Nbc4+ {[%clk
0:01:07]} 22. bxc4 {[%clk 0:01:37.1]} 22... Nxc4+ {[%clk 0:01:07.9]} 23. Rxc4
{[%clk 0:01:35.6]} 23... dxc4 {[%clk 0:01:08.8]} 24. Kc3 {[%clk 0:01:24.5]}
24... Ra4 {[%clk 0:01:06.9]} 25. Bb4 {[%clk 0:01:19.7]} 25... Rha8 {[%clk
0:01:02.6]} 26. a3 {[%clk 0:01:19.7]} 26... e5 {[%clk 0:00:59.3]} 27. d5 {[%clk
0:01:18.6]} 27... f5 {[%clk 0:00:46.9]} 28. Nd6+ {[%clk 0:01:15.9]} 28... Kf6
{[%clk 0:00:42.1]} 29. Nxb7 {[%clk 0:01:15]} 29... Rb8 {[%clk 0:00:41.7]} 30.
Nc5 {[%clk 0:01:14.8]} 30... Rbxb4 {[%clk 0:00:40.7]} 31. Rd1 {[%clk 0:00:50.9]}
31... Rb5 {[%clk 0:00:27.6]} 32. Nxa4 {[%clk 0:00:49.2]} 1-0

[Event "*** Titled Tuesday Blitz"]
[Site "Chess.com"]
[Date "2020.04.28"]
[Round "3"]
[White "Tashik"]
[Black "dzhumagaliev"]
[Result "1-0"]
[WhiteElo "2549"]
[BlackElo "2741"]
[TimeControl "180+1"]
[EndTime "10:28:35 PDT"]
[Termination "Tashik won by resignation"]

1. c4 {[%clk 0:03:00.9]} 1... c5 {[%clk 0:02:59.3]} 2. Nf3 {[%clk 0:03:00.5]}
2... Nc6 {[%clk 0:02:59.8]} 3. d4 {[%clk 0:03:00.4]} 3... cxd4 {[%clk
0:02:58.5]} 4. Nxd4 {[%clk 0:03:01.3]} 4... Nf6 {[%clk 0:02:58.8]} 5. Nc3 {[%clk
0:03:01.3]} 5... e6 {[%clk 0:02:58.7]} 6. g3 {[%clk 0:03:01.4]} 6... d5 {[%clk
0:02:55.6]} 7. cxd5 {[%clk 0:02:53.9]} 7... Nxd5 {[%clk 0:02:54.4]} 8. Nxc6
{[%clk 0:02:38.4]} 8... bxc6 {[%clk 0:02:53.9]} 9. Bg2 {[%clk 0:02:39]} 9... Be7
{[%clk 0:02:52.3]} 10. O-O {[%clk 0:02:38.7]} 10... O-O {[%clk 0:02:52.2]} 11.
Bd2 {[%clk 0:02:38.9]} 11... Rb8 {[%clk 0:02:51.7]} 12. Qc2 {[%clk 0:02:35.2]}
12... Ba6 {[%clk 0:02:48.4]} 13. Rfd1 {[%clk 0:02:30.5]} 13... Qb6 {[%clk
0:02:35.8]} 14. Rab1 {[%clk 0:02:07.7]} 14... Nb4 {[%clk 0:02:21]} 15. Qb3
{[%clk 0:02:01.7]} 15... c5 {[%clk 0:02:15.6]} 16. a3 {[%clk 0:01:50.9]} 16...
Nc6 {[%clk 0:01:09.1]} 17. Qxb6 {[%clk 0:01:49.7]} 17... Rxb6 {[%clk 0:01:10]}
18. Na4 {[%clk 0:01:44.5]} 18... Nd4 {[%clk 0:01:03.7]} 19. Nxb6 {[%clk
0:01:41.3]} 19... axb6 {[%clk 0:01:02.8]} 20. e3 {[%clk 0:01:39.1]} 20... Nb3
{[%clk 0:01:00.5]} 21. Bc3 {[%clk 0:01:38.1]} 21... c4 {[%clk 0:00:52.9]} 22.
Rd7 {[%clk 0:01:37]} 22... Bc5 {[%clk 0:00:52.8]} 23. Rbd1 {[%clk 0:01:33.8]}
23... Bb5 {[%clk 0:00:46]} 24. Rd8 {[%clk 0:01:33.5]} 24... f6 {[%clk
0:00:45.9]} 25. Rxf8+ {[%clk 0:01:25]} 25... Kxf8 {[%clk 0:00:46.8]} 26. Rd8+
{[%clk 0:01:25.3]} 26... Ke7 {[%clk 0:00:47]} 27. Rb8 {[%clk 0:01:25.7]} 27...
Bd7 {[%clk 0:00:40.8]} 28. Bf1 {[%clk 0:01:14.3]} 28... b5 {[%clk 0:00:39.1]}
29. a4 {[%clk 0:01:14.5]} 29... Bd6 {[%clk 0:00:34.8]} 30. Rb6 {[%clk
0:00:56.2]} 30... Bc5 {[%clk 0:00:26.4]} 31. Rb7 {[%clk 0:00:56.5]} 31... bxa4
{[%clk 0:00:23.7]} 32. Bxc4 {[%clk 0:00:56.2]} 32... Kd6 {[%clk 0:00:21.2]} 33.
Bxb3 {[%clk 0:00:52.1]} 33... axb3 {[%clk 0:00:22.1]} 34. Rxb3 {[%clk
0:00:52.1]} 34... Bc6 {[%clk 0:00:22.4]} 35. Rb8 {[%clk 0:00:51.2]} 35... Ba7
{[%clk 0:00:20.2]} 36. Rg8 {[%clk 0:00:50.4]} 36... g6 {[%clk 0:00:19.3]} 37.
Rg7 {[%clk 0:00:50.7]} 37... Bb6 {[%clk 0:00:18.5]} 38. Bxf6 {[%clk 0:00:49.5]}
1-0

[Event "*** Titled Tuesday Blitz"]
[Site "Chess.com"]
[Date "2020.04.28"]
[Round "3"]
[White "temus_galaktionov"]
[Black "Sadykov_Ramil"]
[Result "1-0"]
[WhiteElo "2757"]
[BlackElo "2531"]
[TimeControl "180+1"]
[EndTime "10:28:35 PDT"]
[Termination "temus_galaktionov won by resignation"]

1. d4 {[%clk 0:03:00.9]} 1... d5 {[%clk 0:02:59.9]} 2. Nf3 {[%clk 0:03:00.2]}
2... Nf6 {[%clk 0:03:00.2]} 3. c4 {[%clk 0:03:00.4]} 3... e6 {[%clk 0:02:59]} 4.
Nc3 {[%clk 0:02:59.9]} 4... Be7 {[%clk 0:02:58.3]} 5. Bf4 {[%clk 0:02:59.2]}
5... O-O {[%clk 0:02:54.1]} 6. e3 {[%clk 0:02:58.8]} 6... b6 {[%clk 0:02:54.4]}
7. Bd3 {[%clk 0:02:57.8]} 7... dxc4 {[%clk 0:02:49.4]} 8. Bxc4 {[%clk
0:02:58.7]} 8... Bb7 {[%clk 0:02:30.2]} 9. O-O {[%clk 0:02:55.1]} 9... a6 {[%clk
0:02:20.7]} 10. Qe2 {[%clk 0:02:53.3]} 10... b5 {[%clk 0:02:15.4]} 11. Bb3
{[%clk 0:02:48.8]} 11... Nbd7 {[%clk 0:02:13.7]} 12. Rfd1 {[%clk 0:02:48.5]}
12... Rc8 {[%clk 0:02:09.7]} 13. h3 {[%clk 0:02:41.9]} 13... c5 {[%clk
0:02:01.9]} 14. dxc5 {[%clk 0:02:41.8]} 14... Bxc5 {[%clk 0:02:02.8]} 15. Bd6
{[%clk 0:02:41.5]} 15... Bxd6 {[%clk 0:01:57.5]} 16. Rxd6 {[%clk 0:02:42.4]}
16... Qe7 {[%clk 0:01:53.7]} 17. Rad1 {[%clk 0:02:39]} 17... Nc5 {[%clk
0:01:53.9]} 18. Ne5 {[%clk 0:02:19]} 18... Nd5 {[%clk 0:01:34.4]} 19. Nxd5
{[%clk 0:01:11]} 19... exd5 {[%clk 0:01:31.9]} 20. Bxd5 {[%clk 0:01:06.5]} 20...
Qxd6 {[%clk 0:01:21.9]} 21. Bxf7+ {[%clk 0:01:05.7]} 21... Rxf7 {[%clk
0:01:07.6]} 22. Rxd6 {[%clk 0:01:06.6]} 22... Re7 {[%clk 0:01:02.9]} 23. Nd3
{[%clk 0:01:06.2]} 23... Ne4 {[%clk 0:00:56.9]} 24. Rd4 {[%clk 0:01:04.9]} 24...
h6 {[%clk 0:00:52.6]} 25. Qg4 {[%clk 0:01:03.6]} 25... Rf8 {[%clk 0:00:49.3]}
26. Nf4 {[%clk 0:01:00.5]} 26... Nf6 {[%clk 0:00:37]} 27. Qg3 {[%clk 0:00:57.2]}
27... Be4 {[%clk 0:00:37.3]} 28. Ng6 {[%clk 0:00:53.5]} 28... Bxg6 {[%clk
0:00:37.1]} 29. Qxg6 {[%clk 0:00:52.6]} 29... Rc8 {[%clk 0:00:37.3]} 30. Qf5
{[%clk 0:00:50.5]} 30... Rc6 {[%clk 0:00:31]} 31. Rd8+ {[%clk 0:00:48.8]} 31...
Kf7 {[%clk 0:00:31.3]} 32. g4 {[%clk 0:00:47.5]} 32... g6 {[%clk 0:00:21.6]} 33.
Qd3 {[%clk 0:00:47.2]} 33... Kg7 {[%clk 0:00:16.4]} 34. Rd6 {[%clk 0:00:45]} 1-0

[Event "*** Titled Tuesday Blitz"]
[Site "Chess.com"]
[Date "2020.04.28"]
[Round "3"]
[White "sergeikim"]
[Black "SameerMujumdar"]
[Result "1-0"]
[WhiteElo "2429"]
[BlackElo "2237"]
[TimeControl "180+1"]
[EndTime "10:28:36 PDT"]
[Termination "sergeikim won by resignation"]

1. d4 {[%clk 0:03:00.9]} 1... Nf6 {[%clk 0:02:59.3]} 2. c4 {[%clk 0:03:00.9]}
2... c5 {[%clk 0:02:59.2]} 3. d5 {[%clk 0:03:00.1]} 3... e6 {[%clk 0:02:59.5]}
4. Nc3 {[%clk 0:02:59.4]} 4... exd5 {[%clk 0:02:59.9]} 5. cxd5 {[%clk 0:02:59]}
5... d6 {[%clk 0:03:00.3]} 6. e4 {[%clk 0:02:58.9]} 6... g6 {[%clk 0:03:00.6]}
7. Nge2 {[%clk 0:02:58.8]} 7... Bg7 {[%clk 0:03:01]} 8. Ng3 {[%clk 0:02:57.9]}
8... O-O {[%clk 0:03:01.9]} 9. Be2 {[%clk 0:02:55.1]} 9... Re8 {[%clk
0:02:59.5]} 10. O-O {[%clk 0:02:54.5]} 10... a6 {[%clk 0:02:51.7]} 11. a4 {[%clk
0:02:53.6]} 11... Nbd7 {[%clk 0:02:23.7]} 12. Bf4 {[%clk 0:02:53]} 12... Ne5
{[%clk 0:02:20.5]} 13. Qd2 {[%clk 0:02:52.8]} 13... Rb8 {[%clk 0:02:19.9]} 14.
Bh6 {[%clk 0:02:51.2]} 14... Bd7 {[%clk 0:02:18.1]} 15. Bxg7 {[%clk 0:02:49.2]}
15... Kxg7 {[%clk 0:02:19]} 16. h3 {[%clk 0:02:48.8]} 16... Bc8 {[%clk
0:02:08.9]} 17. f4 {[%clk 0:02:46.6]} 17... Ned7 {[%clk 0:02:08.6]} 18. Rae1
{[%clk 0:02:35.2]} 18... Qb6 {[%clk 0:01:59.3]} 19. Kh2 {[%clk 0:02:31.8]} 19...
Qb4 {[%clk 0:01:55]} 20. Bd3 {[%clk 0:02:06.7]} 20... b5 {[%clk 0:01:50.3]} 21.
axb5 {[%clk 0:02:00.1]} 21... axb5 {[%clk 0:01:51.2]} 22. f5 {[%clk 0:02:00.2]}
22... h6 {[%clk 0:01:44.2]} 23. fxg6 {[%clk 0:01:26.1]} 23... fxg6 {[%clk
0:01:45.1]} 24. e5 {[%clk 0:01:21.9]} 24... Rxe5 {[%clk 0:01:36.1]} 25. Rf4
{[%clk 0:01:01.9]} 25... c4 {[%clk 0:01:29.2]} 26. Ref1 {[%clk 0:00:55]} 26...
Bb7 {[%clk 0:01:23.2]} 27. Bxg6 {[%clk 0:00:50.7]} 27... Kxg6 {[%clk 0:01:15.3]}
28. Qc2+ {[%clk 0:00:50.3]} 28... Kg7 {[%clk 0:01:11.1]} 29. Nf5+ {[%clk
0:00:49.4]} 29... Rxf5 {[%clk 0:01:11.1]} 30. Qxf5 {[%clk 0:00:47.9]} 30... Qxb2
{[%clk 0:01:07.5]} 31. R1f3 {[%clk 0:00:46.2]} 31... Rg8 {[%clk 0:00:59]} 32.
Qe6 {[%clk 0:00:38.6]} 32... Re8 {[%clk 0:00:48.7]} 33. Rg3+ {[%clk 0:00:33.2]}
33... Kh8 {[%clk 0:00:39.8]} 34. Qf7 {[%clk 0:00:28.1]} 34... Rg8 {[%clk
0:00:39.3]} 35. Rxf6 {[%clk 0:00:23.6]} 1-0